[Event "January 9 Early 2024"]
[Site "https://www.chess.com"]
[Date "2024.01.11"]
[Round "9"]
[White "Shimanov, Aleksandr"]
[Black "Pichot, Alan"]
[Result "1-0"]
[Board "35"]
[TimeControl "180+1"]
[WhiteFideId "4198603"]
[BlackFideId "110973"]
[WhiteElo "2999"]
[BlackElo "2834"]
[WhiteTeam "RUS"]
[BlackTeam "ESP"]
[WhiteClock "0:02:09"]
[BlackClock "0:00:06"]

1. e4 {[%clk 0:03:00]}  c5 {[%clk 0:02:59]} 2. d4 {[%clk 0:03:01]}  cxd4 {[%clk 0:02:59]} 3. Qxd4 {[%clk 0:03:02]}  Nc6 {[%clk 0:02:59]} 4. Qd3 {[%clk 0:03:03]}  Nf6 {[%clk 0:02:57]} 5. Nc3 {[%clk 0:03:03]}  g6 {[%clk 0:02:57]} 6. Nf3 {[%clk 0:03:03]}  d6 {[%clk 0:02:57]} 7. Be2 {[%clk 0:03:02]}  Bg7 {[%clk 0:02:56]} 8. O-O {[%clk 0:03:03]}  O-O {[%clk 0:02:56]} 9. Nd5 {[%clk 0:03:03]}  Bg4 {[%clk 0:02:51]} 10. c3 {[%clk 0:03:03]}  Nd7 {[%clk 0:02:47]} 11. Bg5 {[%clk 0:03:02]}  h6 {[%clk 0:02:46]} 12. Bh4 {[%clk 0:03:02]}  Re8 {[%clk 0:02:13]} 13. Rad1 {[%clk 0:03:01]}  Rb8 {[%clk 0:02:08]} 14. Qe3 {[%clk 0:02:55]}  Bxf3 {[%clk 0:01:56]} 15. Bxf3 {[%clk 0:02:53]}  b5 {[%clk 0:01:49]} 16. a3 {[%clk 0:02:51]}  a5 {[%clk 0:01:49]} 17. b4 {[%clk 0:02:49]}  axb4 {[%clk 0:01:48]} 18. axb4 {[%clk 0:02:50]}  Nde5 {[%clk 0:01:44]} 19. Be2 {[%clk 0:02:50]}  Qc8 {[%clk 0:01:33]} 20. f4 {[%clk 0:02:48]}  Nc4 {[%clk 0:01:29]} 21. Bxc4 {[%clk 0:02:48]}  bxc4 {[%clk 0:01:30]} 22. f5 {[%clk 0:02:48]}  g5 {[%clk 0:01:28]} 23. Bg3 {[%clk 0:02:46]}  Ne5 {[%clk 0:01:26]} 24. h4 {[%clk 0:02:46]}  f6 {[%clk 0:01:16]} 25. Bxe5 {[%clk 0:02:45]}  dxe5 {[%clk 0:01:15]} 26. hxg5 {[%clk 0:02:45]}  hxg5 {[%clk 0:01:15]} 27. Ra1 {[%clk 0:02:41]}  Rb7 {[%clk 0:01:06]} 28. Ra6 {[%clk 0:02:40]}  Kf7 {[%clk 0:01:03]} 29. Rfa1 {[%clk 0:02:39]}  Qd7 {[%clk 0:01:01]} 30. Re6 {[%clk 0:02:34]}  Qc8 {[%clk 0:00:51]} 31. Ra7 {[%clk 0:02:30]}  Kf8 {[%clk 0:00:45]} 32. Rxb7 {[%clk 0:02:13]}  Qxb7 {[%clk 0:00:46]} 33. Qc5 {[%clk 0:02:14]}  Kf7 {[%clk 0:00:19]} 34. b5 {[%clk 0:02:13]}  Bf8 {[%clk 0:00:18]} 35. Rc6 {[%clk 0:02:10]}  Qa8 {[%clk 0:00:06]} 36. Ra6 {[%clk 0:02:10]}  Qb8 {[%clk 0:00:06]} 37. Ra7 {[%clk 0:02:10]}  Rc8 {[%clk 0:00:06]} 38. Rxe7+ {[%clk 0:02:09]} 1-0

[Event "January 9 Early 2024"]
[Site "https://www.chess.com"]
[Date "2024.01.11"]
[Round "9"]
[White "Goltseva, Ekaterina"]
[Black "Mazurkiewicz, Michal"]
[Result "0-1"]
[Board "36"]
[TimeControl "180+1"]
[WhiteFideId "24173770"]
[BlackFideId "1124943"]
[WhiteElo "2580"]
[BlackElo "2462"]
[WhiteTeam "RUS"]
[BlackTeam "POL"]
[WhiteClock "0:00:55"]
[BlackClock "0:01:42"]

1. d4 {[%clk 0:03:00]}  Nf6 {[%clk 0:02:57]} 2. c4 {[%clk 0:03:00]}  e5 {[%clk 0:02:57]} 3. dxe5 {[%clk 0:03:00]}  Ng4 {[%clk 0:02:57]} 4. Bf4 {[%clk 0:03:00]}  Nc6 {[%clk 0:02:57]} 5. Nf3 {[%clk 0:03:00]}  Bb4+ {[%clk 0:02:57]} 6. Nc3 {[%clk 0:03:00]}  Bxc3+ {[%clk 0:02:56]} 7. bxc3 {[%clk 0:03:00]}  Qe7 {[%clk 0:02:57]} 8. Qd5 {[%clk 0:02:59]}  f6 {[%clk 0:02:58]} 9. exf6 {[%clk 0:02:58]}  Nxf6 {[%clk 0:02:58]} 10. Qd1 {[%clk 0:02:45]}  d6 {[%clk 0:02:58]} 11. e3 {[%clk 0:02:45]}  O-O {[%clk 0:02:58]} 12. Be2 {[%clk 0:02:40]}  Ne5 {[%clk 0:02:55]} 13. Nd4 {[%clk 0:02:28]}  Ne4 {[%clk 0:02:50]} 14. Qc2 {[%clk 0:02:14]}  Nxf2 {[%clk 0:02:47]} 15. Kxf2 {[%clk 0:02:04]}  g5 {[%clk 0:02:44]} 16. g3 {[%clk 0:01:59]}  c5 {[%clk 0:02:20]} 17. Nb3 {[%clk 0:01:39]}  Be6 {[%clk 0:02:06]} 18. Kg2 {[%clk 0:01:10]}  gxf4 {[%clk 0:02:02]} 19. exf4 {[%clk 0:01:11]}  Nxc4 {[%clk 0:01:56]} 20. Qe4 {[%clk 0:01:05]}  Bh3+ {[%clk 0:01:53]} 21. Kf3 {[%clk 0:01:00]}  Bg2+ {[%clk 0:01:49]} 22. Kxg2 {[%clk 0:00:57]}  Qxe4+ {[%clk 0:01:50]} 23. Bf3 {[%clk 0:00:57]}  Ne3+ {[%clk 0:01:41]} 24. Kf2 {[%clk 0:00:55]}  Qc2+ {[%clk 0:01:42]} 0-1

[Event "January 9 Early 2024"]
[Site "https://www.chess.com"]
[Date "2024.01.11"]
[Round "9"]
[White "Buscar, Michael"]
[Black "Coca Cubillos, Jesus Alberto"]
[Result "0-1"]
[Board "37"]
[TimeControl "180+1"]
[WhiteFideId "2603616"]
[BlackFideId "4462912"]
[WhiteElo "2417"]
[BlackElo "2570"]
[WhiteTeam "CAN"]
[BlackTeam "COL"]
[WhiteClock "0:00:11"]
[BlackClock "0:02:02"]

1. d4 {[%clk 0:02:46]}  g6 {[%clk 0:03:00]} 2. Nf3 {[%clk 0:02:45]}  Bg7 {[%clk 0:03:00]} 3. g3 {[%clk 0:02:45]}  d6 {[%clk 0:03:01]} 4. Bg2 {[%clk 0:02:45]}  Nh6 {[%clk 0:03:01]} 5. Nbd2 {[%clk 0:02:42]}  Nc6 {[%clk 0:03:01]} 6. c3 {[%clk 0:02:42]}  O-O {[%clk 0:03:00]} 7. e4 {[%clk 0:02:42]}  e5 {[%clk 0:03:01]} 8. d5 {[%clk 0:02:42]}  Ne7 {[%clk 0:03:01]} 9. O-O {[%clk 0:02:35]}  f5 {[%clk 0:03:00]} 10. a4 {[%clk 0:02:31]}  Kh8 {[%clk 0:03:00]} 11. a5 {[%clk 0:02:31]}  f4 {[%clk 0:02:59]} 12. a6 {[%clk 0:02:27]}  b6 {[%clk 0:02:58]} 13. Ne1 {[%clk 0:02:18]}  g5 {[%clk 0:02:56]} 14. f3 {[%clk 0:02:03]}  Ng6 {[%clk 0:02:55]} 15. g4 {[%clk 0:01:56]}  Ng8 {[%clk 0:02:55]} 16. Nd3 {[%clk 0:01:54]}  Nf6 {[%clk 0:02:56]} 17. Nb4 {[%clk 0:01:51]}  Bd7 {[%clk 0:02:54]} 18. Rf2 {[%clk 0:01:46]}  h5 {[%clk 0:02:54]} 19. h3 {[%clk 0:01:46]}  Nh4 {[%clk 0:02:54]} 20. Bf1 {[%clk 0:01:46]}  Rf7 {[%clk 0:02:54]} 21. Nc6 {[%clk 0:01:40]}  Qe8 {[%clk 0:02:51]} 22. Bc4 {[%clk 0:01:01]}  Bf8 {[%clk 0:02:49]} 23. Rh2 {[%clk 0:00:56]}  Rh7 {[%clk 0:02:48]} 24. Bb5 {[%clk 0:00:47]}  Qc8 {[%clk 0:02:43]} 25. Ra2 {[%clk 0:00:23]}  hxg4 {[%clk 0:02:43]} 26. hxg4 {[%clk 0:00:23]}  Nxg4 {[%clk 0:02:43]} 27. fxg4 {[%clk 0:00:24]}  Bxg4 {[%clk 0:02:43]} 28. Be2 {[%clk 0:00:20]}  Bxe2 {[%clk 0:02:40]} 29. Qxe2 {[%clk 0:00:20]}  f3 {[%clk 0:02:39]} 30. Qf2 {[%clk 0:00:17]}  Qg4+ {[%clk 0:02:39]} 31. Kf1 {[%clk 0:00:17]}  Kg7 {[%clk 0:02:27]} 32. b4 {[%clk 0:00:17]}  Kg6 {[%clk 0:02:26]} 33. Ke1 {[%clk 0:00:15]}  Rf7 {[%clk 0:02:24]} 34. Kd1 {[%clk 0:00:15]}  Bg7 {[%clk 0:02:25]} 35. Kc2 {[%clk 0:00:15]}  Bf6 {[%clk 0:02:13]} 36. Kd3 {[%clk 0:00:15]}  Bd8 {[%clk 0:02:10]} 37. Nc4 {[%clk 0:00:14]}  Ng2 {[%clk 0:02:06]} 38. Ne3 {[%clk 0:00:13]}  Nf4+ {[%clk 0:02:04]} 39. Kc2 {[%clk 0:00:12]}  Qd7 {[%clk 0:02:03]} 40. Nf5 {[%clk 0:00:11]}  Rxf5 {[%clk 0:02:02]} 41. exf5+ {[%clk 0:00:11]}  Qxf5+ {[%clk 0:02:03]} 42. Kb2 {[%clk 0:00:11]}  Nd3+ {[%clk 0:02:02]} 0-1

[Event "January 9 Early 2024"]
[Site "https://www.chess.com"]
[Date "2024.01.11"]
[Round "9"]
[White "Saha, Ananda"]
[Black "Chemin, Justo Reinaldo"]
[Result "1-0"]
[Board "39"]
[TimeControl "180+1"]
[WhiteFideId "2619644"]
[BlackFideId "2101580"]
[WhiteElo "2478"]
[BlackElo "2248"]
[WhiteTeam "CAN"]
[BlackTeam "BRA"]
[WhiteClock "0:00:48"]
[BlackClock "0:01:00"]

1. e4 {[%clk 0:03:00]}  d5 {[%clk 0:02:59]} 2. exd5 {[%clk 0:02:58]}  Qxd5 {[%clk 0:03:00]} 3. Nc3 {[%clk 0:02:58]}  Qa5 {[%clk 0:02:59]} 4. d4 {[%clk 0:02:58]}  c6 {[%clk 0:03:00]} 5. Nf3 {[%clk 0:02:57]}  Nf6 {[%clk 0:02:59]} 6. Bc4 {[%clk 0:02:53]}  Bg4 {[%clk 0:02:55]} 7. h3 {[%clk 0:02:50]}  Bxf3 {[%clk 0:02:53]} 8. Qxf3 {[%clk 0:02:49]}  Nbd7 {[%clk 0:02:52]} 9. Bd2 {[%clk 0:02:42]}  Qb4 {[%clk 0:02:45]} 10. Qe2 {[%clk 0:02:23]}  e6 {[%clk 0:02:25]} 11. Nd5 {[%clk 0:01:57]}  Qxb2 {[%clk 0:02:20]} 12. Nc7+ {[%clk 0:01:10]}  Kd8 {[%clk 0:02:16]} 13. O-O {[%clk 0:01:10]}  Kxc7 {[%clk 0:02:06]} 14. Rfb1 {[%clk 0:01:09]}  Qxd4 {[%clk 0:01:56]} 15. Rd1 {[%clk 0:01:00]}  Bc5 {[%clk 0:01:34]} 16. Ba5+ {[%clk 0:00:58]}  b6 {[%clk 0:01:26]} 17. Rxd4 {[%clk 0:00:58]}  Bxd4 {[%clk 0:01:27]} 18. Rd1 {[%clk 0:00:58]}  Bc5 {[%clk 0:01:14]} 19. Bc3 {[%clk 0:00:52]}  Rad8 {[%clk 0:01:12]} 20. g4 {[%clk 0:00:51]}  h6 {[%clk 0:01:12]} 21. Qf3 {[%clk 0:00:49]}  Nf8 {[%clk 0:01:00]} 22. Rxd8 {[%clk 0:00:47]}  Kxd8 {[%clk 0:01:00]} 23. Bxf6+ {[%clk 0:00:48]} 1-0

[Event "January 9 Early 2024"]
[Site "https://www.chess.com"]
[Date "2024.01.11"]
[Round "9"]
[White "So, Wesley"]
[Black "Pakleza, Zbigniew"]
[Result "1-0"]
[Board "40"]
[TimeControl "180+1"]
[WhiteFideId "5202213"]
[BlackFideId "1119290"]
[WhiteElo "3056"]
[BlackElo "2871"]
[WhiteTeam "USA"]
[BlackTeam "POL"]
[WhiteClock "0:00:54"]
[BlackClock "0:00:50"]

1. d4 {[%clk 0:02:29]}  d6 {[%clk 0:02:55]} 2. e4 {[%clk 0:02:27]}  Nf6 {[%clk 0:02:54]} 3. Nc3 {[%clk 0:02:26]}  c6 {[%clk 0:02:55]} 4. f4 {[%clk 0:02:23]}  Qb6 {[%clk 0:02:55]} 5. e5 {[%clk 0:02:13]}  Nd5 {[%clk 0:02:55]} 6. Nf3 {[%clk 0:02:10]}  Bg4 {[%clk 0:02:54]} 7. Be2 {[%clk 0:02:10]}  e6 {[%clk 0:02:52]} 8. Ne4 {[%clk 0:02:03]}  dxe5 {[%clk 0:02:47]} 9. fxe5 {[%clk 0:02:04]}  c5 {[%clk 0:02:31]} 10. Nfg5 {[%clk 0:01:40]}  Bf5 {[%clk 0:02:23]} 11. c4 {[%clk 0:01:24]}  Nb4 {[%clk 0:02:06]} 12. O-O {[%clk 0:01:24]}  h6 {[%clk 0:01:49]} 13. Nxf7 {[%clk 0:01:21]}  Kxf7 {[%clk 0:01:50]} 14. g4 {[%clk 0:01:15]}  g6 {[%clk 0:01:50]} 15. d5 {[%clk 0:01:10]}  Kg7 {[%clk 0:01:32]} 16. gxf5 {[%clk 0:01:10]}  exf5 {[%clk 0:01:33]} 17. Ng3 {[%clk 0:01:05]}  Nd7 {[%clk 0:01:29]} 18. e6 {[%clk 0:01:00]}  Nf6 {[%clk 0:01:27]} 19. a3 {[%clk 0:00:57]}  Na6 {[%clk 0:01:27]} 20. Kh1 {[%clk 0:00:53]}  Bd6 {[%clk 0:01:02]} 21. Nxf5+ {[%clk 0:00:53]}  gxf5 {[%clk 0:00:58]} 22. Rxf5 {[%clk 0:00:54]}  Qd8 {[%clk 0:00:50]} 23. Qg1+ {[%clk 0:00:54]} 1-0

[Event "January 9 Early 2024"]
[Site "https://www.chess.com"]
[Date "2024.01.11"]
[Round "9"]
[White "Carre, Sylvain"]
[Black "Radibratovic, Predrag"]
[Result "0-1"]
[Board "45"]
[TimeControl "180+1"]
[WhiteFideId "642118"]
[BlackFideId "902012"]
[WhiteElo "2369"]
[BlackElo "2508"]
[WhiteTeam "FRA"]
[BlackTeam "SRB"]
[WhiteClock "0:00:21"]
[BlackClock "0:01:51"]

1. d4 {[%clk 0:03:00]}  d5 {[%clk 0:02:59]} 2. Bf4 {[%clk 0:03:01]}  Nf6 {[%clk 0:02:58]} 3. e3 {[%clk 0:03:02]}  c6 {[%clk 0:02:59]} 4. Nf3 {[%clk 0:03:00]}  Bf5 {[%clk 0:02:59]} 5. Bd3 {[%clk 0:02:59]}  Bg6 {[%clk 0:02:58]} 6. O-O {[%clk 0:02:57]}  Nbd7 {[%clk 0:02:58]} 7. c4 {[%clk 0:02:55]}  e6 {[%clk 0:02:58]} 8. Nc3 {[%clk 0:02:54]}  Be7 {[%clk 0:02:58]} 9. h3 {[%clk 0:02:49]}  O-O {[%clk 0:02:58]} 10. Bxg6 {[%clk 0:02:50]}  hxg6 {[%clk 0:02:58]} 11. Ne5 {[%clk 0:02:50]}  Nxe5 {[%clk 0:02:58]} 12. dxe5 {[%clk 0:02:46]}  Nd7 {[%clk 0:02:56]} 13. cxd5 {[%clk 0:02:45]}  cxd5 {[%clk 0:02:56]} 14. e4 {[%clk 0:02:43]}  dxe4 {[%clk 0:02:55]} 15. Nxe4 {[%clk 0:02:42]}  Nc5 {[%clk 0:02:55]} 16. Nxc5 {[%clk 0:02:20]}  Bxc5 {[%clk 0:02:54]} 17. Qxd8 {[%clk 0:02:16]}  Rfxd8 {[%clk 0:02:53]} 18. Rfd1 {[%clk 0:02:16]}  Kf8 {[%clk 0:02:39]} 19. Kf1 {[%clk 0:02:16]}  Ke8 {[%clk 0:02:39]} 20. Ke2 {[%clk 0:02:15]}  Rxd1 {[%clk 0:02:38]} 21. Rxd1 {[%clk 0:02:14]}  Rd8 {[%clk 0:02:39]} 22. Rxd8+ {[%clk 0:02:14]}  Kxd8 {[%clk 0:02:39]} 23. Be3 {[%clk 0:02:15]}  Bxe3 {[%clk 0:02:35]} 24. Kxe3 {[%clk 0:02:16]}  Kd7 {[%clk 0:02:35]} 25. Kd4 {[%clk 0:02:04]}  Kc6 {[%clk 0:02:36]} 26. a4 {[%clk 0:02:02]}  b5 {[%clk 0:02:36]} 27. b3 {[%clk 0:02:00]}  Kb6 {[%clk 0:02:29]} 28. f4 {[%clk 0:01:37]}  bxa4 {[%clk 0:02:19]} 29. bxa4 {[%clk 0:01:37]}  Ka5 {[%clk 0:02:19]} 30. Kc5 {[%clk 0:01:37]}  Kxa4 {[%clk 0:02:19]} 31. Kd6 {[%clk 0:01:38]}  a5 {[%clk 0:02:20]} 32. Ke7 {[%clk 0:01:39]}  Kb5 {[%clk 0:02:20]} 33. Kxf7 {[%clk 0:01:40]}  a4 {[%clk 0:02:21]} 34. Kxg6 {[%clk 0:01:39]}  a3 {[%clk 0:02:21]} 35. f5 {[%clk 0:01:39]}  a2 {[%clk 0:02:04]} 36. f6 {[%clk 0:00:47]}  gxf6 {[%clk 0:02:02]} 37. exf6 {[%clk 0:00:48]}  a1=Q {[%clk 0:02:02]} 38. f7 {[%clk 0:00:40]}  Qh8 {[%clk 0:02:01]} 39. g4 {[%clk 0:00:41]}  Kc6 {[%clk 0:02:00]} 40. h4 {[%clk 0:00:41]}  Kd6 {[%clk 0:02:00]} 41. h5 {[%clk 0:00:31]}  Ke7 {[%clk 0:02:00]} 42. g5 {[%clk 0:00:28]}  e5 {[%clk 0:01:54]} 43. h6 {[%clk 0:00:23]}  e4 {[%clk 0:01:53]} 44. h7 {[%clk 0:00:20]}  e3 {[%clk 0:01:52]} 45. Kh6 {[%clk 0:00:20]}  Kxf7 {[%clk 0:01:51]} 46. g6+ {[%clk 0:00:21]}  Kf6 {[%clk 0:01:51]} 0-1

[Event "January 9 Early 2024"]
[Site "https://www.chess.com"]
[Date "2024.01.11"]
[Round "9"]
[White "Foisor, Sabina-Francesca"]
[Black "Prudnykova, Olga"]
[Result "0-1"]
[Board "47"]
[TimeControl "180+1"]
[WhiteFideId "1212915"]
[BlackFideId "14121093"]
[WhiteElo "2396"]
[BlackElo "2278"]
[WhiteTeam "USA"]
[BlackTeam "ISL"]
[WhiteClock "0:00:15"]
[BlackClock "0:01:21"]

1. d4 {[%clk 0:03:00]}  Nf6 {[%clk 0:02:58]} 2. c4 {[%clk 0:03:00]}  g6 {[%clk 0:02:56]} 3. Nc3 {[%clk 0:02:59]}  d5 {[%clk 0:02:56]} 4. Bg5 {[%clk 0:02:58]}  Bg7 {[%clk 0:02:55]} 5. Nf3 {[%clk 0:02:58]}  Ne4 {[%clk 0:02:55]} 6. Bh4 {[%clk 0:02:54]}  Nxc3 {[%clk 0:02:53]} 7. bxc3 {[%clk 0:02:53]}  c5 {[%clk 0:02:54]} 8. e3 {[%clk 0:02:54]}  cxd4 {[%clk 0:02:53]} 9. cxd4 {[%clk 0:02:53]}  Nc6 {[%clk 0:02:54]} 10. cxd5 {[%clk 0:02:47]}  Qxd5 {[%clk 0:02:54]} 11. Qb3 {[%clk 0:02:47]}  Qa5+ {[%clk 0:02:52]} 12. Nd2 {[%clk 0:02:44]}  O-O {[%clk 0:02:44]} 13. Bc4 {[%clk 0:02:34]}  e5 {[%clk 0:02:42]} 14. d5 {[%clk 0:02:26]}  e4 {[%clk 0:02:10]} 15. Rd1 {[%clk 0:01:53]}  Bg4 {[%clk 0:01:50]} 16. f3 {[%clk 0:01:37]}  exf3 {[%clk 0:01:49]} 17. Rc1 {[%clk 0:00:35]}  fxg2 {[%clk 0:01:48]} 18. Rg1 {[%clk 0:00:35]}  Ne5 {[%clk 0:01:47]} 19. Rxg2 {[%clk 0:00:34]}  Nxc4 {[%clk 0:01:41]} 20. Qxc4 {[%clk 0:00:33]}  Bh3 {[%clk 0:01:34]} 21. Rg3 {[%clk 0:00:20]}  Rac8 {[%clk 0:01:33]} 22. Rxh3 {[%clk 0:00:18]}  Rxc4 {[%clk 0:01:33]} 23. Rxc4 {[%clk 0:00:19]}  Qxd5 {[%clk 0:01:30]} 24. e4 {[%clk 0:00:18]}  Qh5 {[%clk 0:01:25]} 25. Kf2 {[%clk 0:00:17]}  g5 {[%clk 0:01:22]} 26. Rc5 {[%clk 0:00:15]}  f5 {[%clk 0:01:21]} 0-1

[Event "January 9 Early 2024"]
[Site "https://www.chess.com"]
[Date "2024.01.11"]
[Round "9"]
[White "Sielecki, Christof"]
[Black "Lopez Idarraga, Daniel Eduardo"]
[Result "0-1"]
[Board "49"]
[TimeControl "180+1"]
[WhiteFideId "4620437"]
[BlackFideId "4405501"]
[WhiteElo "2543"]
[BlackElo "2428"]
[WhiteTeam "GER"]
[BlackTeam "COL"]
[WhiteClock "0:00:07"]
[BlackClock "0:01:31"]

1. d4 {[%clk 0:02:57]}  d5 {[%clk 0:02:59]} 2. Nf3 {[%clk 0:02:56]}  Nf6 {[%clk 0:02:59]} 3. g3 {[%clk 0:02:56]}  Bf5 {[%clk 0:02:58]} 4. c4 {[%clk 0:02:56]}  c6 {[%clk 0:02:57]} 5. Nc3 {[%clk 0:02:56]}  e6 {[%clk 0:02:57]} 6. Qb3 {[%clk 0:02:54]}  Qb6 {[%clk 0:02:56]} 7. c5 {[%clk 0:02:54]}  Qxb3 {[%clk 0:02:52]} 8. axb3 {[%clk 0:02:55]}  Nbd7 {[%clk 0:02:52]} 9. b4 {[%clk 0:02:54]}  Be7 {[%clk 0:02:50]} 10. b5 {[%clk 0:02:50]}  a5 {[%clk 0:02:49]} 11. b4 {[%clk 0:02:18]}  a4 {[%clk 0:02:49]} 12. b6 {[%clk 0:02:05]}  Bc2 {[%clk 0:02:43]} 13. Bf4 {[%clk 0:01:58]}  O-O {[%clk 0:02:42]} 14. e3 {[%clk 0:01:51]}  Ne4 {[%clk 0:02:41]} 15. Nxe4 {[%clk 0:01:42]}  dxe4 {[%clk 0:02:42]} 16. Nd2 {[%clk 0:01:39]}  a3 {[%clk 0:02:40]} 17. Nc4 {[%clk 0:01:32]}  a2 {[%clk 0:02:35]} 18. Kd2 {[%clk 0:01:31]}  Bb1 {[%clk 0:02:33]} 19. Be2 {[%clk 0:01:18]}  Ra4 {[%clk 0:02:05]} 20. Kc3 {[%clk 0:01:14]}  Nf6 {[%clk 0:02:02]} 21. Kb3 {[%clk 0:01:03]}  Rfa8 {[%clk 0:01:58]} 22. Na5 {[%clk 0:00:57]}  Rxb4+ {[%clk 0:01:53]} 23. Kxb4 {[%clk 0:00:54]}  Nd5+ {[%clk 0:01:54]} 24. Kb3 {[%clk 0:00:45]}  Rxa5 {[%clk 0:01:51]} 25. Bc7 {[%clk 0:00:27]}  f5 {[%clk 0:01:48]} 26. Bc4 {[%clk 0:00:25]}  Bf6 {[%clk 0:01:45]} 27. Rd1 {[%clk 0:00:16]}  Rxc5 {[%clk 0:01:42]} 28. Bxd5 {[%clk 0:00:16]}  exd5 {[%clk 0:01:39]} 29. Kb4 {[%clk 0:00:08]}  Rb5+ {[%clk 0:01:35]} 30. Kc3 {[%clk 0:00:08]}  Be7 {[%clk 0:01:35]} 31. Kd2 {[%clk 0:00:07]}  Bb4+ {[%clk 0:01:33]} 32. Ke2 {[%clk 0:00:07]}  Bc3 {[%clk 0:01:31]} 0-1

[Event "January 9 Early 2024"]
[Site "https://www.chess.com"]
[Date "2024.01.11"]
[Round "9"]
[White "Ranaldi, Lucas"]
[Black "Indjic, Aleksandar"]
[Result "0-1"]
[Board "50"]
[TimeControl "180+1"]
[WhiteFideId "1519484"]
[BlackFideId "911925"]
[WhiteElo "2720"]
[BlackElo "2895"]
[WhiteTeam "NOR"]
[BlackTeam "SRB"]
[WhiteClock "0:00:01"]
[BlackClock "0:01:17"]

1. Nf3 {[%clk 0:03:00]}  d5 {[%clk 0:02:58]} 2. d4 {[%clk 0:02:57]}  Bf5 {[%clk 0:02:54]} 3. c4 {[%clk 0:02:57]}  e6 {[%clk 0:02:55]} 4. Nc3 {[%clk 0:02:48]}  Nf6 {[%clk 0:02:54]} 5. Bg5 {[%clk 0:02:36]}  c6 {[%clk 0:02:53]} 6. e3 {[%clk 0:02:35]}  Nbd7 {[%clk 0:02:52]} 7. Bd3 {[%clk 0:02:29]}  Bg6 {[%clk 0:02:52]} 8. O-O {[%clk 0:02:27]}  Be7 {[%clk 0:02:50]} 9. Qe2 {[%clk 0:02:18]}  Ne4 {[%clk 0:02:49]} 10. Bxe7 {[%clk 0:02:17]}  Qxe7 {[%clk 0:02:50]} 11. Qc2 {[%clk 0:02:14]}  f5 {[%clk 0:02:49]} 12. Rab1 {[%clk 0:02:14]}  Bh5 {[%clk 0:02:44]} 13. Nd2 {[%clk 0:02:14]}  Qg5 {[%clk 0:02:40]} 14. Kh1 {[%clk 0:01:54]}  Qh4 {[%clk 0:02:36]} 15. Ndxe4 {[%clk 0:00:50]}  fxe4 {[%clk 0:02:34]} 16. Be2 {[%clk 0:00:50]}  Bg6 {[%clk 0:02:30]} 17. b4 {[%clk 0:00:47]}  O-O {[%clk 0:02:29]} 18. Kg1 {[%clk 0:00:30]}  Rf6 {[%clk 0:02:16]} 19. g3 {[%clk 0:00:22]}  Qh3 {[%clk 0:02:16]} 20. Nd1 {[%clk 0:00:07]}  Raf8 {[%clk 0:02:09]} 21. Re1 {[%clk 0:00:06]}  Bf5 {[%clk 0:01:37]} 22. Bf1 {[%clk 0:00:06]}  Qh5 {[%clk 0:01:37]} 23. Rb2 {[%clk 0:00:05]}  Bh3 {[%clk 0:01:29]} 24. b5 {[%clk 0:00:02]}  Rh6 {[%clk 0:01:21]} 25. f4 {[%clk 0:00:02]}  exf3 {[%clk 0:01:18]} 26. Nf2 {[%clk 0:00:02]}  Bxf1 {[%clk 0:01:17]} 27. Kxf1 {[%clk 0:00:01]}  Qxh2 {[%clk 0:01:17]} 0-1

[Event "January 9 Early 2024"]
[Site "https://www.chess.com"]
[Date "2024.01.11"]
[Round "9"]
[White "Kobalia, Mikhail"]
[Black "Daneshvar, Bardiya"]
[Result "1-0"]
[Board "51"]
[TimeControl "180+1"]
[WhiteFideId "4119150"]
[BlackFideId "12576468"]
[WhiteElo "2830"]
[BlackElo "2937"]
[WhiteTeam "FID"]
[BlackTeam "IRI"]
[WhiteClock "0:00:26"]
[BlackClock "0:01:22"]

1. e4 {[%clk 0:03:00]}  e5 {[%clk 0:02:57]} 2. Nf3 {[%clk 0:03:00]}  Nc6 {[%clk 0:02:58]} 3. Bb5 {[%clk 0:03:00]}  Nf6 {[%clk 0:02:58]} 4. O-O {[%clk 0:02:58]}  Nxe4 {[%clk 0:02:59]} 5. Re1 {[%clk 0:02:59]}  Nd6 {[%clk 0:03:00]} 6. Nxe5 {[%clk 0:02:59]}  Be7 {[%clk 0:03:00]} 7. Bf1 {[%clk 0:02:59]}  Nf5 {[%clk 0:03:00]} 8. Nf3 {[%clk 0:02:57]}  O-O {[%clk 0:02:59]} 9. d4 {[%clk 0:02:57]}  d5 {[%clk 0:03:00]} 10. c3 {[%clk 0:02:58]}  Bd6 {[%clk 0:02:59]} 11. Bd3 {[%clk 0:02:57]}  g6 {[%clk 0:02:54]} 12. Bg5 {[%clk 0:02:54]}  f6 {[%clk 0:02:54]} 13. Bc1 {[%clk 0:02:53]}  Nce7 {[%clk 0:02:54]} 14. c4 {[%clk 0:02:52]}  c6 {[%clk 0:02:51]} 15. Nc3 {[%clk 0:02:51]}  dxc4 {[%clk 0:02:48]} 16. Bxc4+ {[%clk 0:02:51]}  Kg7 {[%clk 0:02:48]} 17. h3 {[%clk 0:02:43]}  Bc7 {[%clk 0:02:45]} 18. d5 {[%clk 0:02:35]}  b5 {[%clk 0:02:41]} 19. Bb3 {[%clk 0:02:27]}  b4 {[%clk 0:02:40]} 20. Ne4 {[%clk 0:02:26]}  cxd5 {[%clk 0:02:31]} 21. Nc5 {[%clk 0:02:25]}  Qd6 {[%clk 0:02:31]} 22. Nd3 {[%clk 0:02:18]}  g5 {[%clk 0:02:31]} 23. Bd2 {[%clk 0:02:11]}  a5 {[%clk 0:02:25]} 24. Rc1 {[%clk 0:02:10]}  Bb6 {[%clk 0:02:19]} 25. g4 {[%clk 0:01:48]}  Qg3+ {[%clk 0:02:03]} 26. Kh1 {[%clk 0:01:39]}  Qxh3+ {[%clk 0:01:59]} 27. Nh2 {[%clk 0:01:34]}  Qxd3 {[%clk 0:01:53]} 28. gxf5 {[%clk 0:01:32]}  Nxf5 {[%clk 0:01:51]} 29. Rc6 {[%clk 0:01:22]}  Bxf2 {[%clk 0:01:43]} 30. Rc7+ {[%clk 0:01:21]}  Kg6 {[%clk 0:01:39]} 31. Bc2 {[%clk 0:00:59]}  Qg3 {[%clk 0:01:38]} 32. Ree7 {[%clk 0:00:50]}  Rh8 {[%clk 0:01:26]} 33. Rg7+ {[%clk 0:00:34]}  Kh6 {[%clk 0:01:26]} 34. Ng4+ {[%clk 0:00:34]}  Qxg4 {[%clk 0:01:22]} 35. Qxg4 {[%clk 0:00:30]}  Nxg7 {[%clk 0:01:22]} 36. Qf3 {[%clk 0:00:26]} 1-0